bitfinex/quotes_BTCUSD_20250204
["timestamp","ask_amount","ask_price","bid_price","bid_amount"]
[1738709195970,0.39224046,97276.0,97275.0,0.001]
[1738709196372,0.23804046,97276.0,97275.0,0.001]
[1738709196736,0.39224046,97276.0,97275.0,0.001]
[1738709196994,0.23804046,97276.0,97275.0,0.002]
[1738709197214,0.23804046,97276.0,97269.0,0.08234731]
[1738709197421,0.154209,97271.0,97269.0,0.08234731]
[1738709197627,0.10238506,97270.0,97269.0,0.08234731]
[1738709197817,0.10238506,97270.0,97259.0,0.20582428]
[1738709198018,0.16752159,97270.0,97259.0,0.20582428]
[1738709198419,0.10238506,97270.0,97259.0,0.20582428]
[1738709198564,0.25659506,97270.0,97259.0,0.36005028]
[1738709198768,0.10238506,97270.0,97259.0,0.36005028]
[1738709198985,0.10238506,97270.0,97261.0,0.205632]
[1738709199272,0.10238506,97270.0,97262.0,0.154221]
[1738709199440,0.10238506,97270.0,97260.0,0.154224]
[1738709199649,0.10238506,97270.0,97269.0,0.001]
[1738709199847,0.1357622,97276.0,97210.0,0.08234731]
[1738709199848,0.1288,97232.0,97210.0,0.08234731]
[1738709200051,0.154273,97230.0,97219.0,0.15429]
[1738709200210,0.1288,97232.0,97211.0,0.20620618]
[1738709200415,0.01288,97231.0,97214.0,0.154298]
[1738709200591,0.205697,97230.0,97211.0,0.00046918]
[1738709200795,0.01288,97231.0,97211.0,0.00046918]
[1738709201237,0.10238506,97230.0,97211.0,0.00046918]
[1738709201437,0.02550328,97229.0,97212.0,0.205735]
[1738709201762,0.10238506,97228.0,97215.0,0.205728]
[1738709201916,0.15428,97226.0,97216.0,0.154294]
[1738709202117,0.154282,97224.0,97214.0,0.154297]
[1738709202302,0.25667006,97223.0,97215.0,0.154297]
[1738709202501,0.10238506,97223.0,97215.0,0.154297]
[1738709202703,0.02550328,97229.0,97219.0,0.001]
[1738709202704,0.03335963,97222.0,97219.0,0.001]
[1738709202907,0.33397406,97220.0,97219.0,0.001]
[1738709203106,0.17968506,97220.0,97211.0,0.00046918]
[1738709203306,0.154301,97212.0,97211.0,0.00046918]
[1738709203532,0.25668606,97212.0,97211.0,0.00046918]
[1738709203754,0.34407287,97212.0,97211.0,0.00046918]
[1738709205774,0.18977187,97212.0,97211.0,0.00046918]
[1738709205997,0.10638506,97212.0,97211.0,0.15477218]
[1738709206312,0.10638506,97212.0,97211.0,0.00504805]
[1738709206716,0.10238506,97212.0,97211.0,0.15477218]
[1738709206940,0.154276,97228.0,97221.0,0.154287]
[1738709207061,0.154285,97223.0,97211.0,0.00504805]
[1738709207265,0.25667106,97222.0,97211.0,0.00046918]
[1738709207506,0.10238506,97222.0,97216.0,0.154295]
[1738709207742,0.25667106,97222.0,97211.0,0.00046918]
[1738709207911,0.25657106,97222.0,97215.0,0.154296]
[1738709208104,0.25657106,97222.0,97211.0,0.00046918]
[1738709208318,0.25657106,97222.0,97216.0,0.154295]
[1738709208510,0.06166933,97221.0,97213.0,0.154299]
[1738709208729,0.10238506,97220.0,97211.0,0.00146918]
[1738709208930,0.10238506,97220.0,97211.0,0.00246918]
[1738709209138,0.25667506,97220.0,97213.0,0.154298]
[1738709209339,0.10238506,97220.0,97215.0,0.154296]
[1738709210887,0.10238506,97220.0,97211.0,0.00069346]
[1738709211513,0.10238506,97220.0,97219.0,0.15429]
[1738709211700,0.10238506,97220.0,97216.0,0.205725]
[1738709211701,0.10238506,97220.0,97218.0,0.154291]
[1738709212476,0.10238506,97220.0,97216.0,0.205725]
[1738709212694,0.0766,97230.0,97213.0,0.08234731]
[1738709212908,0.10238506,97229.0,97228.0,0.154276]
[1738709213103,0.10238506,97229.0,97213.0,0.08234731]
[1738709213308,0.10238506,97229.0,97228.0,0.154276]
[1738709214490,0.13661679,97246.0,97241.0,0.154254]
[1738709214670,0.13661679,97246.0,97242.0,0.154253]
[1738709214671,0.10238506,97245.0,97242.0,0.154253]
[1738709214874,0.10238506,97245.0,97241.0,0.154255]
[1738709215075,0.10238506,97245.0,97240.0,0.205676]
[1738709215303,0.10238506,97245.0,97244.0,0.154251]
[1738709215511,0.10238506,97245.0,97241.0,0.154254]
[1738709215831,0.10238506,97245.0,97244.0,0.154251]
[1738709216029,0.17271679,97262.0,97256.0,0.15423]
[1738709216234,0.10238506,97261.0,97242.0,0.205672]
[1738709216447,0.10238506,97261.0,97260.0,0.154225]
[1738709217085,0.09121679,97262.0,97261.0,0.154224]
[1738709217256,0.005,97262.0,97261.0,0.154224]
[1738709218644,0.0486,97267.0,97258.0,0.205638]
[1738709218844,0.0486,97267.0,97266.0,0.154216]
[1738709219050,0.0001068,97271.0,97270.0,0.154209]
[1738709220739,0.0011068,97271.0,97270.0,0.154209]
[1738709222549,0.0001068,97271.0,97270.0,0.154209]
[1738709222706,0.0011068,97271.0,97270.0,0.154209]
[1738709223227,0.0011068,97271.0,97270.0,0.155209]
[1738709223439,0.0011068,97271.0,97270.0,0.156209]
[1738709223658,0.0001068,97271.0,97270.0,0.154209]
[1738709223812,0.0001068,97271.0,97270.0,0.155209]
[1738709224138,0.0001068,97271.0,97270.0,0.156209]
[1738709224349,0.0001068,97271.0,97270.0,0.155209]
[1738709224551,0.0001068,97271.0,97270.0,0.15644251]
[1738709225582,0.0001068,97271.0,97270.0,0.155209]
[1738709225742,0.0001068,97271.0,97270.0,0.156209]
[1738709225936,0.0001068,97271.0,97270.0,0.305209]
[1738709226166,0.0001068,97271.0,97270.0,0.306209]
[1738709226365,0.0001068,97271.0,97270.0,0.305209]
[1738709226558,0.0001068,97271.0,97270.0,0.304209]
[1738709226759,0.0001068,97271.0,97270.0,0.306209]
[1738709226991,0.0001068,97271.0,97270.0,0.40759406]
[1738709227212,0.0001068,97271.0,97270.0,0.42712445]
[1738709227421,0.0001068,97271.0,97270.0,0.42812445]
[1738709228742,0.0001068,97271.0,97270.0,0.42712445]
[1738709228974,0.0001068,97271.0,97270.0,0.50612445]
[1738709229444,0.0001068,97271.0,97270.0,0.50712445]
[1738709229676,0.0001068,97271.0,97270.0,0.50612445]
[1738709230110,0.0001068,97271.0,97270.0,0.50712445]
[1738709230396,0.0001068,97271.0,97270.0,0.50512445]
[1738709230630,0.0001068,97271.0,97270.0,0.50612445]
[1738709230847,0.0001068,97271.0,97270.0,0.50712445]
[1738709231986,0.0001068,97271.0,97270.0,0.50612445]
[1738709232216,0.0001068,97271.0,97270.0,0.42712445]
[1738709232417,0.0001068,97271.0,97270.0,0.42812445]
[1738709232618,0.0001068,97271.0,97270.0,0.42912445]
[1738709232892,0.0001068,97271.0,97270.0,0.42712445]
[1738709233093,0.0001068,97271.0,97270.0,0.42812445]
[1738709233303,0.0001068,97271.0,97270.0,0.42912445]
[1738709236625,0.0001068,97271.0,97270.0,0.42812445]
[1738709237195,0.0001068,97271.0,97270.0,0.42912445]
[1738709237360,0.0001068,97271.0,97270.0,0.42812445]
[1738709237564,0.0001068,97271.0,97270.0,0.42712445]
[1738709237782,0.0001068,97271.0,97270.0,0.42812445]
[1738709238857,0.0001068,97271.0,97270.0,0.42912445]
[1738709246711,8e-07,97271.0,97270.0,0.42912445]
[1738709249445,8e-07,97271.0,97270.0,0.40859406]
[1738709251972,1e-06,97276.0,97275.0,0.304202]
[1738709252142,1e-06,97276.0,97275.0,0.45011745]
[1738709253084,1e-06,97276.0,97275.0,0.45111745]
[1738709253291,3e-07,97284.0,97283.0,0.304189]
[1738709253498,3e-07,97284.0,97283.0,0.40657406]
[1738709254472,2e-07,97285.0,97284.0,0.304187]
[1738709254685,2e-07,97285.0,97284.0,0.40657206]
[1738709255652,2e-07,97285.0,97284.0,0.61307206]
[1738709255855,2e-07,97285.0,97284.0,0.61207206]
[1738709256382,2e-07,97285.0,97284.0,0.61307206]
[1738709258065,2e-07,97285.0,97284.0,0.61207206]
[1738709258443,2e-07,97285.0,97284.0,0.61307206]
[1738709258649,2e-07,97285.0,97284.0,0.62315716]
[1738709258879,2e-07,97285.0,97284.0,0.62415716]
[1738709259075,2e-07,97285.0,97284.0,0.62515716]
[1738709259236,2e-07,97285.0,97284.0,0.64531852]
[1738709259891,0.0420502,97321.0,97320.0,0.15413]
[1738709260216,0.04219101,97321.0,97320.0,0.35963]
[1738709261628,0.04219101,97321.0,97320.0,0.36063]
[1738709262252,0.04219101,97321.0,97320.0,0.15613]
[1738709262876,0.04209964,97321.0,97320.0,0.15613]
[1738709264892,0.03060251,97321.0,97320.0,0.15613]
[1738709265729,0.00014081,97321.0,97320.0,0.15613]
[1738709266825,0.00014081,97321.0,97320.0,0.16743503]
[1738709267037,0.00014081,97321.0,97320.0,0.16866792]
[1738709267797,0.00024771,97321.0,97320.0,0.16766792]
[1738709267924,0.00024771,97321.0,97320.0,0.41882009]
[1738709268131,0.00024771,97321.0,97320.0,0.44182009]
[1738709268590,0.00024771,97321.0,97320.0,0.44082009]
[1738709268811,0.00024771,97321.0,97320.0,0.44182009]
[1738709269160,1e-08,97324.0,97323.0,0.327125]
[1738709269357,1e-08,97324.0,97323.0,0.47911006]
[1738709269585,1e-08,97329.0,97328.0,0.304118]
[1738709269790,1e-08,97329.0,97328.0,0.45003345]
[1738709270590,4.98912841,97334.0,97329.0,0.15]
[1738709270809,4.98912841,97334.0,97333.0,0.50941]
[1738709271012,4.98912841,97334.0,97333.0,0.61179506]
[1738709272862,4.98912841,97334.0,97333.0,0.61279506]
[1738709273238,4.98912841,97334.0,97333.0,0.61179506]
[1738709273515,4.98912841,97334.0,97333.0,0.61279506]
[1738709273846,4.94803241,97334.0,97333.0,0.61179506]
[1738709274048,4.88638841,97334.0,97333.0,0.61179506]
[1738709274529,4.88638841,97334.0,97333.0,0.62268295]
[1738709274710,4.84529241,97334.0,97333.0,0.62268295]
[1738709275231,4.84529241,97334.0,97333.0,0.62368295]
[1738709275388,4.84529241,97334.0,97333.0,0.63248295]
[1738709275640,4.82629241,97334.0,97333.0,0.62268295]
[1738709275818,4.82629241,97334.0,97333.0,0.63348295]
[1738709276153,4.82629241,97334.0,97333.0,0.63248295]
[1738709276364,4.82629241,97334.0,97333.0,0.63348295]
[1738709276693,4.82629241,97334.0,97333.0,0.63248295]
[1738709277116,4.82629241,97334.0,97333.0,0.63348295]
[1738709277965,4.72355241,97334.0,97333.0,0.74213512]
[1738709278158,4.72355241,97334.0,97333.0,0.76413512]
[1738709278374,4.64136041,97334.0,97333.0,0.76413512]
[1738709278631,4.62081241,97334.0,97333.0,0.76513512]
[1738709278876,4.62081241,97334.0,97333.0,0.75413512]
[1738709279271,4.62081241,97334.0,97333.0,0.77656972]
[1738709279501,4.51807241,97334.0,97333.0,0.77556972]
[1738709279697,4.51807241,97334.0,97333.0,0.77656972]
[1738709280141,4.51807241,97334.0,97333.0,0.77556972]
[1738709280274,4.51817921,97334.0,97333.0,0.77556972]
[1738709280501,4.36044921,97334.0,97333.0,0.77556972]
[1738709281283,4.27885521,97334.0,97333.0,0.77556972]
[1738709281536,4.19158803,97334.0,97333.0,0.77556972]
[1738709281743,4.18850757,97334.0,97333.0,0.79428388]
[1738709281959,4.01924184,97334.0,97333.0,1.58862688]
[1738709282101,4.01924184,97334.0,97333.0,0.79528388]
[1738709282303,3.99869384,97334.0,97333.0,0.95052888]
[1738709282491,3.93704984,97334.0,97333.0,0.96052888]
[1738709282692,3.91650184,97334.0,97333.0,0.96052888]
[1738709283142,3.88541184,97334.0,97333.0,0.96052888]
[1738709283455,3.75646772,97334.0,97333.0,0.96052888]
[1738709283657,3.0654753,97334.0,97333.0,0.96052888]
[1738709283996,2.8327153,97334.0,97333.0,0.96052888]
[1738709284106,2.8277853,97334.0,97333.0,0.96052888]
[1738709284337,2.75920659,97334.0,97333.0,0.96052888]
[1738709284563,2.71811059,97334.0,97333.0,0.96052888]
[1738709285436,2.63499659,97334.0,97333.0,0.96052888]
[1738709285612,2.57490059,97334.0,97333.0,0.96052888]
[1738709286585,2.53380459,97334.0,97333.0,0.96052888]
[1738709286920,2.46140059,97334.0,97333.0,0.95072888]
[1738709287125,2.46140059,97334.0,97333.0,0.94181472]
[1738709287341,2.39975659,97334.0,97333.0,0.94181472]
[1738709287496,2.35866059,97334.0,97333.0,0.94181472]
[1738709287890,2.35866059,97334.0,97333.0,0.92201472]
[1738709288089,2.35866059,97334.0,97333.0,0.75373972]
[1738709288358,2.35866059,97334.0,97333.0,0.51266972]
[1738709288522,2.38847859,97334.0,97333.0,0.66366972]
[1738709288739,2.38847859,97334.0,97333.0,0.66266972]
[1738709288941,2.38847859,97334.0,97333.0,0.67158868]
[1738709289178,2.38847859,97334.0,97333.0,0.68238868]
[1738709289389,2.38847859,97334.0,97333.0,0.67138868]
[1738709289731,2.36947859,97334.0,97333.0,0.67238868]
[1738709289932,2.36947859,97334.0,97333.0,0.66258868]
[1738709290127,2.36947859,97334.0,97333.0,0.65366972]
[1738709290594,2.36947859,97334.0,97333.0,0.64386972]
[1738709290838,2.36947859,97334.0,97333.0,0.54148466]
[1738709292909,2.35357859,97334.0,97333.0,0.54148466]
[1738709293113,2.35357859,97334.0,97333.0,0.56046655]
[1738709293425,2.35357859,97334.0,97333.0,0.55946655]
[1738709293595,2.35357859,97334.0,97333.0,0.56046655]
[1738709293793,2.35357859,97334.0,97333.0,0.55946655]
[1738709294187,2.35357859,97334.0,97333.0,0.54170894]
[1738709295625,2.35362548,97334.0,97333.0,0.54170894]
[1738709297986,2.35362548,97334.0,97333.0,0.644094]
[1738709298467,2.33307748,97334.0,97333.0,0.644094]
[1738709298849,2.29198148,97334.0,97333.0,0.644094]
[1738709299052,2.27143348,97334.0,97333.0,0.644094]
[1738709299644,2.27143348,97334.0,97333.0,0.643094]
[1738709299834,2.27143348,97334.0,97333.0,0.644094]
[1738709300232,2.25088548,97334.0,97333.0,0.643094]
[1738709300433,2.14969348,97334.0,97333.0,0.644094]
[1738709301002,2.12914548,97334.0,97333.0,0.644094]
[1738709301407,2.06750148,97334.0,97333.0,0.644094]
[1738709302508,2.06750148,97334.0,97333.0,0.643094]
[1738709303027,2.02640548,97334.0,97333.0,0.643094]
[1738709303229,1.94421348,97334.0,97333.0,0.676094]
[1738709303430,1.81518546,97334.0,97333.0,0.841357]
[1738709303643,1.79463744,97334.0,97333.0,1.060725]
[1738709303848,1.72235847,97334.0,97333.0,1.136825]
[1738709304900,1.68126247,97334.0,97333.0,1.136825]
[1738709305566,1.51261047,97334.0,97333.0,1.136825]
[1738709305777,1.49206247,97334.0,97333.0,1.136825]
[1738709306215,1.46543693,97334.0,97333.0,1.136825]
[1738709306465,1.22966147,97334.0,97333.0,1.136825]
[1738709306801,1.09252147,97334.0,97333.0,1.136825]
[1738709307006,1.07867147,97334.0,97333.0,1.182025]
[1738709307424,0.91589974,97334.0,97333.0,1.182025]
[1738709307989,0.87080358,97334.0,97333.0,1.182025]
[1738709308189,0.00566146,97334.0,97333.0,1.182025]
[1738709308387,0.0001069,97369.0,97368.0,0.304054]
[1738709308688,0.0616023,97380.0,97368.0,0.304054]
[1738709308689,0.0610027,97380.0,97379.0,0.154037]
[1738709308887,0.06147196,97380.0,97379.0,0.154037]
[1738709309089,0.14367196,97380.0,97379.0,0.154037]
[1738709309301,0.04367196,97380.0,97379.0,0.154037]
[1738709311748,0.0001069,97383.0,97381.0,0.154034]
[1738709311930,0.00024753,97382.0,97381.0,0.25641906]
[1738709312303,0.00015619,97382.0,97381.0,0.25641906]
[1738709313302,0.06596309,97388.0,97387.0,0.154024]
[1738709313503,0.06596309,97388.0,97387.0,0.25640906]
[1738709315624,0.01122596,97403.0,97387.0,0.25640906]
[1738709315625,0.01122596,97403.0,97387.0,0.25238506]
[1738709315831,0.01122596,97403.0,97399.0,0.359305]
[1738709316288,0.10084202,97400.0,97399.0,0.46169006]
[1738709316487,0.02004202,97400.0,97399.0,0.48039629]
[1738709318333,0.02004202,97400.0,97399.0,0.50092668]
[1738709318758,0.02004202,97400.0,97399.0,0.51189461]
[1738709319817,0.02004202,97400.0,97399.0,0.49318838]
[1738709321872,0.14444202,97400.0,97399.0,0.37983539]
[1738709322070,0.02004202,97400.0,97399.0,0.37983539]
[1738709323031,0.02004202,97400.0,97399.0,0.48222045]
[1738709323267,0.02004202,97400.0,97399.0,0.37983539]
[1738709326937,0.02014872,97400.0,97399.0,0.37983539]
[1738709327297,0.02014872,97400.0,97399.0,0.48222045]
[1738709329178,0.02014872,97400.0,97399.0,0.49329699]
[1738709331139,0.02014872,97400.0,97399.0,0.51198504]
[1738709332367,0.02014872,97400.0,97399.0,0.54192327]
[1738709334988,0.02014872,97400.0,97399.0,0.51198504]
[1738709335470,0.02014872,97400.0,97399.0,0.52174504]
[1738709336910,0.02014872,97400.0,97399.0,0.5517144]
[1738709337307,0.02014872,97400.0,97399.0,0.6276144]
[1738709337614,7.2e-07,97402.0,97401.0,0.337002]
[1738709337841,7.2e-07,97402.0,97401.0,0.67518706]
[1738709338018,7.2e-07,97402.0,97401.0,0.67194706]
[1738709338243,7.2e-07,97402.0,97401.0,0.71363511]
[1738709339547,4.2e-07,97402.0,97401.0,0.71363511]
[1738709339769,0.0473,97446.0,97431.0,0.153955]
[1738709339892,0.0778,97463.0,97431.0,0.63217045]
[1738709340090,0.00024743,97432.0,97431.0,0.63217045]
[1738709340341,0.0778,97463.0,97446.0,0.153931]
[1738709341628,0.0778,97463.0,97446.0,0.20253216]
[1738709341881,0.0020675,97447.0,97446.0,0.20253216]
[1738709342892,0.0020675,97447.0,97446.0,0.30491722]
[1738709343440,0.0019762,97447.0,97446.0,0.30491722]
[1738709343796,2.3993612,97450.0,97449.0,0.303926]
[1738709343992,2.3993612,97450.0,97449.0,0.40631106]
[1738709344203,2.3993612,97450.0,97449.0,0.41631106]
[1738709344408,2.34228505,97450.0,97449.0,0.43931106]
[1738709344621,8.112e-05,97482.0,97449.0,0.57761106]
[1738709344839,0.08892409,97507.0,97487.0,0.01]
[1738709345037,0.08892409,97507.0,97506.0,0.359136]
[1738709345240,0.0004688,97507.0,97506.0,0.37966639]
[1738709347117,0.0004688,97507.0,97506.0,0.48205145]
[1738709347631,0.1289688,97507.0,97506.0,0.48205145]
[1738709347857,0.1289688,97507.0,97506.0,0.2053]
[1738709348058,0.1289688,97507.0,97506.0,0.30768506]
[1738709348264,0.0004688,97507.0,97506.0,0.32821545]
[1738709348834,0.0004688,97507.0,97506.0,0.30768506]
[1738709349068,0.0004688,97507.0,97506.0,0.32821545]
[1738709351731,0.0005755,97507.0,97506.0,0.32821545]
[1738709352305,0.205007,97558.0,97506.0,0.32821545]
[1738709352306,0.0145023,97573.0,97561.0,0.153749]
[1738709352532,0.0145023,97573.0,97561.0,0.37957939]
[1738709352791,3e-07,97573.0,97572.0,0.303732]
[1738709353063,3e-07,97573.0,97572.0,0.32426239]
[1738709353290,3e-08,97573.0,97572.0,0.40879117]
[1738709353775,0.01,97597.0,97596.0,0.153694]
[1738709354004,0.01,97597.0,97596.0,0.37952439]
[1738709354229,0.01,97597.0,97596.0,0.48190945]
[1738709354446,0.01,97597.0,97596.0,0.37952439]
[1738709354789,0.01,97597.0,97596.0,0.358994]
[1738709355000,0.1363,97597.0,97596.0,0.25294399]
[1738709355199,0.23868506,97597.0,97596.0,0.17615863]
[1738709356060,0.153716,97582.0,97581.0,0.32818325]
[1738709356187,0.25610106,97582.0,97581.0,0.32818325]
[1738709357048,0.25610106,97582.0,97558.0,0.32818325]
[1738709357049,0.204962,97579.0,97558.0,0.53318725]
[1738709357224,0.10238506,97579.0,97558.0,0.53318725]
[1738709357427,0.153727,97576.0,97561.0,0.153748]
[1738709357628,0.153724,97578.0,97559.0,0.08198947]
[1738709357842,0.10238506,97579.0,97563.0,0.153746]
[1738709358053,0.11329007,97579.0,97559.0,0.08198947]
[1738709358253,0.25701107,97579.0,97565.0,0.153742]
[1738709358455,0.204964,97578.0,97559.0,0.08198947]
[1738709358680,0.153727,97576.0,97560.0,0.15375]
[1738709358879,0.01090501,97579.0,97575.0,0.08198947]
[1738709359003,0.01090501,97579.0,97573.0,0.153729]
[1738709359375,0.153709,97587.0,97572.0,0.153732]
[1738709359503,0.10238506,97586.0,97570.0,0.153734]
[1738709359708,0.13311777,97586.0,97560.0,0.21157939]
[1738709359904,0.10238506,97586.0,97562.0,0.204997]
[1738709360153,0.30104664,97597.0,97582.0,0.153715]
[1738709360403,0.153697,97595.0,97580.0,0.153719]
[1738709360648,0.10238506,97594.0,97571.0,0.204978]
[1738709360894,0.153702,97592.0,97577.0,0.153724]
[1738709361115,0.153702,97592.0,97579.0,0.153721]
[1738709361270,0.10238506,97594.0,97584.0,0.153712]
[1738709361471,0.02105264,97597.0,97580.0,0.21157939]
[1738709361671,0.02105264,97597.0,97591.0,0.153701]
[1738709361881,0.02105264,97597.0,97589.0,0.153705]
[1738709362076,0.02105264,97597.0,97587.0,0.204943]
[1738709362278,0.02105264,97597.0,97579.0,0.08198947]
[1738709362279,0.153702,97591.0,97579.0,0.08198947]
[1738709362446,0.10238506,97596.0,97579.0,0.08198947]
[1738709362447,0.25608106,97596.0,97579.0,0.08198947]
[1738709362644,0.153712,97585.0,97579.0,0.08198947]
[1738709362846,0.153714,97584.0,97579.0,0.08198947]
[1738709363260,0.10238506,97591.0,97579.0,0.08198947]
[1738709363456,0.15371,97586.0,97579.0,0.08198947]
[1738709363946,0.0001065,97596.0,97583.0,0.153713]
[1738709364163,0.0001065,97596.0,97579.0,0.08198947]
[1738709364164,0.0001065,97596.0,97581.0,0.00122956]
[1738709364330,0.0001065,97596.0,97595.0,0.153696]
[1738709365492,0.0001065,97596.0,97595.0,0.25731054]
[1738709365686,0.0001065,97596.0,97595.0,0.27661145]
[1738709366312,0.0001065,97596.0,97595.0,0.17422639]
[1738709366513,0.0001065,97596.0,97595.0,0.17545579]
[1738709366892,0.0001065,97596.0,97595.0,0.27784085]
[1738709367103,0.0001065,97596.0,97595.0,0.27661145]
[1738709367307,0.0001065,97596.0,97595.0,0.153696]
[1738709367619,0.0001065,97596.0,97595.0,0.25608106]
[1738709368448,0.0001065,97596.0,97595.0,0.153696]
[1738709369249,0.0001065,97596.0,97595.0,0.25608106]
[1738709369486,0.0001065,97596.0,97595.0,0.27661145]
[1738709370209,0.0001065,97596.0,97595.0,0.42661145]
[1738709370355,0.0001065,97596.0,97595.0,0.46192939]
[1738709370558,0.0001065,97596.0,97595.0,0.42661145]
[1738709370943,0.0001065,97596.0,97595.0,0.42761145]
[1738709372379,0.204846,97635.0,97595.0,0.14850982]
[1738709372557,0.153638,97632.0,97620.0,0.153656]
[1738709373159,0.00046842,97635.0,97624.0,0.153649]
[1738709373339,0.00046842,97635.0,97626.0,0.153646]
[1738709373479,0.01111913,97635.0,97622.0,0.01577928]
[1738709373690,0.153639,97632.0,97622.0,0.01577928]
[1738709373886,0.153639,97632.0,97620.0,0.153656]
[1738709374135,0.15364,97631.0,97618.0,0.153659]
[1738709374648,0.15410242,97635.0,97623.0,0.153651]
[1738709374858,0.15410142,97635.0,97617.0,0.08198947]
[1738709375051,0.00046842,97635.0,97618.0,0.20488]
[1738709375256,0.00046842,97635.0,97621.0,0.204872]
[1738709375413,0.00046842,97635.0,97629.0,0.153642]
[1738709375611,0.00046842,97635.0,97634.0,0.153635]
[1738709376827,0.00046842,97635.0,97634.0,0.25724899]
[1738709377018,0.00046842,97635.0,97634.0,0.26602006]
[1738709377193,0.00046842,97635.0,97634.0,0.25602006]
[1738709377581,0.00046842,97635.0,97634.0,0.41602006]
[1738709377780,0.00046842,97635.0,97634.0,0.40602006]
[1738709377986,0.00046842,97635.0,97634.0,0.41456145]
[1738709378151,0.00046842,97635.0,97634.0,0.42456145]
[1738709378556,4.2e-07,97635.0,97634.0,0.50529331]
[1738709378758,4.2e-07,97635.0,97634.0,0.70889331]
[1738709378961,9.2e-07,97640.0,97639.0,0.336627]
[1738709379158,9.2e-07,97640.0,97639.0,0.45954245]
[1738709379159,3.5e-07,97640.0,97639.0,0.45954245]
[1738709379372,3.5e-07,97640.0,97639.0,0.49673633]
[1738709379773,0.0153305,97659.0,97639.0,0.49673633]
[1738709379774,0.00494557,97664.0,97647.0,0.01]
[1738709379975,0.00494557,97664.0,97663.0,0.507189]
[1738709380172,0.00494557,97664.0,97663.0,0.63010445]
[1738709380372,0.00494557,97664.0,97663.0,0.66729833]
[1738709380573,0.00494557,97664.0,97663.0,0.63010445]
[1738709380778,0.00494557,97664.0,97663.0,0.66729833]
[1738709381188,0.00494557,97664.0,97663.0,0.63010445]
[1738709381595,0.00494557,97664.0,97663.0,0.66729833]
[1738709382043,0.00494557,97664.0,97663.0,0.63010445]
[1738709382240,0.00494557,97664.0,97663.0,0.70151196]
[1738709382435,0.00494557,97664.0,97663.0,0.66729833]
[1738709383014,0.00494557,97664.0,97663.0,0.63010445]
[1738709383226,0.00494557,97664.0,97663.0,0.66486333]
[1738709383615,0.00494557,97664.0,97663.0,0.68786333]
[1738709383773,0.00494557,97664.0,97663.0,0.69835363]
[1738709383978,0.00494557,97664.0,97663.0,0.66486333]
[1738709384384,0.00494557,97664.0,97663.0,0.63010445]
[1738709385361,0.00864594,97694.0,97671.0,0.01]
[1738709385562,0.0001065,97694.0,97693.0,0.357142]
[1738709385765,0.204633,97736.0,97711.0,0.153513]
[1738709385940,0.00879699,97713.0,97711.0,0.153513]
[1738709386088,0.01044771,97712.0,97711.0,0.153513]
[1738709386489,0.01044771,97712.0,97695.0,0.08198947]
[1738709386694,0.0486,97711.0,97705.0,0.08198947]
[1738709386947,0.0486,97711.0,97705.0,0.23551047]
[1738709387809,0.153521,97706.0,97705.0,0.08198947]
[1738709388211,0.143521,97706.0,97705.0,0.08198947]
[1738709388681,0.220721,97706.0,97705.0,0.08198947]
[1738709390684,0.32310606,97706.0,97705.0,0.08198947]
[1738709397401,0.220721,97706.0,97705.0,0.08198947]
[1738709398346,0.153537,97696.0,97695.0,0.08198947]
[1738709399536,0.17958506,97706.0,97705.0,0.00022428]
[1738709399760,0.33310606,97706.0,97705.0,0.00022428]
[1738709399920,0.34173724,97706.0,97705.0,0.00022428]
[1738709400344,0.26453724,97706.0,97705.0,0.00022428]
[1738709402374,0.00863118,97706.0,97705.0,0.00022428]
[1738709402579,0.10238506,97706.0,97705.0,0.00022428]
[1738709402751,0.153521,97707.0,97705.0,0.00022428]
[1738709403294,0.16238285,97707.0,97705.0,0.00022428]
[1738709403860,0.00886185,97707.0,97705.0,0.00022428]
[1738709404062,0.204689,97709.0,97705.0,0.00022428]
[1738709404403,0.153521,97707.0,97705.0,0.00022428]
[1738709404838,0.00886098,97709.0,97706.0,0.08198947]
[1738709405244,0.21297882,97727.0,97707.0,0.1036131]
[1738709405245,0.00832682,97727.0,97707.0,0.1036131]
[1738709405449,0.00832682,97727.0,97710.0,0.153514]
[1738709405567,0.00832682,97727.0,97711.0,0.00122793]
[1738709405782,0.00832682,97727.0,97711.0,0.00122794]
[1738709405978,0.00848115,97726.0,97711.0,0.00122794]
[1738709406208,0.0456,97722.0,97689.0,0.02053039]
[1738709406385,0.358198,97711.0,97694.0,0.00122821]
[1738709406598,0.153521,97706.0,97697.0,0.153535]
[1738709406812,0.153521,97706.0,97695.0,0.08198947]
[1738709407009,0.19126562,97706.0,97695.0,0.08198947]
[1738709407220,0.153521,97706.0,97695.0,0.08198947]
[1738709410513,0.25590606,97706.0,97695.0,0.08198947]
[1738709413265,0.27504526,97706.0,97695.0,0.08198947]
[1738709413948,0.0191392,97706.0,97705.0,0.25613234]
[1738709414289,0.01044771,97712.0,97711.0,0.153513]
[1738709415208,0.06017169,97712.0,97711.0,0.153513]
[1738709416414,0.01044771,97712.0,97711.0,0.153513]
[1738709418343,0.01035654,97712.0,97711.0,0.153513]
[1738709422184,0.01035654,97712.0,97711.0,0.17404339]
[1738709422365,0.01035654,97712.0,97711.0,0.17527133]
[1738709422567,0.01035654,97712.0,97711.0,0.27765639]
[1738709422792,0.01035654,97712.0,97711.0,0.27642845]
[1738709422990,0.01035654,97712.0,97711.0,0.28505468]
[1738709424719,0.01035654,97712.0,97711.0,0.27642845]
[1738709424893,0.01035654,97712.0,97711.0,0.48228145]
[1738709425078,0.01035654,97712.0,97711.0,0.35752845]
[1738709425706,0.00035654,97712.0,97711.0,0.35752845]
[1738709426112,0.15345,97752.0,97711.0,0.35752845]
[1738709426113,5.7e-07,97766.0,97765.0,0.01]
[1738709426314,5.7e-07,97766.0,97765.0,0.25655741]
[1738709426515,5.7e-07,97766.0,97765.0,0.40533039]
[1738709426715,5.7e-07,97766.0,97765.0,0.38413039]
[1738709426917,5.7e-07,97766.0,97765.0,0.39402164]
[1738709427178,5.7e-07,97766.0,97765.0,0.23282164]
[1738709427591,0.00046796,97770.0,97765.0,0.23282164]
[1738709427726,0.00046796,97770.0,97766.0,0.10238506]
[1738709427919,0.00046796,97770.0,97767.0,0.00122719]
[1738709428182,0.00046796,97770.0,97768.0,0.10238506]
[1738709428396,0.00046796,97770.0,97765.0,0.2036]
[1738709428601,0.153427,97767.0,97765.0,0.2036]
[1738709428904,0.562573,97765.0,97726.0,0.02053039]
[1738709429070,0.15346,97745.0,97727.0,0.00122766]
[1738709429490,0.153472,97738.0,97727.0,0.00122766]
[1738709429657,0.15347,97739.0,97728.0,0.10238506]
[1738709430045,0.204625,97740.0,97728.0,0.10238506]
[1738709430440,0.153462,97744.0,97728.0,0.10238506]